[Event "*** Titled Tuesday Blitz"]
[Site "Chess.com"]
[Date "2021.02.02"]
[Round "10"]
[White "ftorodent"]
[Black "federicosellitti"]
[Result "1-0"]
[WhiteElo "2694"]
[BlackElo "2464"]
[TimeControl "180+1"]
[EndTime "11:56:50 PST"]
[Termination "ftorodent won on time"]

1. d4 {[%clk 0:03:00.9]} 1... d5 {[%clk 0:03:00.1]} 2. c4 {[%clk 0:03:00.8]}
2... Nc6 {[%clk 0:03:00.7]} 3. cxd5 {[%clk 0:02:56.7]} 3... Qxd5 {[%clk
0:03:01.6]} 4. e3 {[%clk 0:02:57.2]} 4... e5 {[%clk 0:03:02.1]} 5. Nc3 {[%clk
0:02:57.8]} 5... Bb4 {[%clk 0:03:02.8]} 6. a3 {[%clk 0:02:58.3]} 6... Bxc3+
{[%clk 0:03:02.9]} 7. bxc3 {[%clk 0:02:58.7]} 7... Nf6 {[%clk 0:03:03.6]} 8. c4
{[%clk 0:02:56.2]} 8... Qd6 {[%clk 0:03:03.9]} 9. d5 {[%clk 0:02:56.5]} 9... Ne7
{[%clk 0:03:04.1]} 10. Ne2 {[%clk 0:02:49.2]} 10... O-O {[%clk 0:03:00.9]} 11.
Nc3 {[%clk 0:02:49]} 11... c6 {[%clk 0:02:47.4]} 12. e4 {[%clk 0:02:48.6]} 12...
b5 {[%clk 0:02:47.3]} 13. Be3 {[%clk 0:02:06.7]} 13... bxc4 {[%clk 0:02:42.8]}
14. Bxc4 {[%clk 0:02:06.6]} 14... cxd5 {[%clk 0:02:42.6]} 15. exd5 {[%clk
0:02:06.4]} 15... Bg4 {[%clk 0:02:37.1]} 16. f3 {[%clk 0:01:58.5]} 16... Rfc8
{[%clk 0:02:27.9]} 17. Nb5 {[%clk 0:01:33.4]} 17... Qd7 {[%clk 0:02:27.8]} 18.
Be2 {[%clk 0:01:32.6]} 18... Nexd5 {[%clk 0:02:14.6]} 19. Bf2 {[%clk 0:01:19.3]}
19... Bf5 {[%clk 0:01:56.8]} 20. g4 {[%clk 0:01:09.9]} 20... Bc2 {[%clk
0:01:19.3]} 21. Qd2 {[%clk 0:01:09.5]} 21... a6 {[%clk 0:01:19.1]} 22. Na7
{[%clk 0:01:02.8]} 22... Rxa7 {[%clk 0:01:00.9]} 23. Bxa7 {[%clk 0:01:02.3]}
23... Qxa7 {[%clk 0:01:01.8]} 24. g5 {[%clk 0:01:02.1]} 24... Nh5 {[%clk
0:00:34.5]} 25. Qxd5 {[%clk 0:00:49.4]} 25... Nf4 {[%clk 0:00:34.9]} 26. Qd2
{[%clk 0:00:47.9]} 26... Ng2+ {[%clk 0:00:34.6]} 27. Kf1 {[%clk 0:00:48.1]}
27... Ne3+ {[%clk 0:00:33.6]} 28. Ke1 {[%clk 0:00:48.4]} 28... Bf5 {[%clk
0:00:13.6]} 29. Bf1 {[%clk 0:00:19.7]} 29... Nc2+ {[%clk 0:00:10.7]} 30. Kd1
{[%clk 0:00:18.9]} 30... Nxa1 {[%clk 0:00:10.5]} 31. Bd3 {[%clk 0:00:18]} 31...
Bxd3 {[%clk 0:00:07.3]} 32. Qxd3 {[%clk 0:00:18.2]} 32... Qf2 {[%clk 0:00:08]}
33. Rf1 {[%clk 0:00:15.7]} 33... Qb2 {[%clk 0:00:05.5]} 34. Qd2 {[%clk
0:00:14.4]} 34... Qxd2+ {[%clk 0:00:02.1]} 35. Kxd2 {[%clk 0:00:14.6]} 35...
Nb3+ {[%clk 0:00:03]} 36. Ke3 {[%clk 0:00:13.2]} 36... Nd4 {[%clk 0:00:03.9]}
37. Ke4 {[%clk 0:00:12.5]} 37... f6 {[%clk 0:00:03.9]} 38. Rb1 {[%clk
0:00:10.5]} 38... Rc7 {[%clk 0:00:03.3]} 39. Rb6 {[%clk 0:00:09.8]} 39... a5
{[%clk 0:00:03.6]} 40. gxf6 {[%clk 0:00:09.2]} 40... gxf6 {[%clk 0:00:03.7]} 41.
Rxf6 {[%clk 0:00:09.8]} 41... Rf7 {[%clk 0:00:02.6]} 42. Ra6 {[%clk 0:00:07.8]}
42... Nxf3 {[%clk 0:00:02.2]} 43. Rxa5 {[%clk 0:00:07.7]} 43... Kg7 {[%clk
0:00:01.5]} 44. Ra6 {[%clk 0:00:05.1]} 1-0

[Event "*** Titled Tuesday Blitz"]
[Site "Chess.com"]
[Date "2021.02.02"]
[Round "10"]
[White "cukin84"]
[Black "Darius321"]
[Result "0-1"]
[WhiteElo "2146"]
[BlackElo "2277"]
[TimeControl "180+1"]
[EndTime "11:56:51 PST"]
[Termination "Darius321 won by checkmate"]

1. e4 {[%clk 0:03:00.9]} 1... c5 {[%clk 0:02:55.9]} 2. Nc3 {[%clk 0:03:00]} 2...
e6 {[%clk 0:02:55.4]} 3. f4 {[%clk 0:02:59.3]} 3... d5 {[%clk 0:02:55.6]} 4. d3
{[%clk 0:02:57.7]} 4... d4 {[%clk 0:02:51.9]} 5. Nce2 {[%clk 0:02:56.9]} 5...
Nc6 {[%clk 0:02:52.1]} 6. Nf3 {[%clk 0:02:56.5]} 6... f5 {[%clk 0:02:45.3]} 7.
exf5 {[%clk 0:02:52.8]} 7... exf5 {[%clk 0:02:44.4]} 8. g3 {[%clk 0:02:41.6]}
8... Nf6 {[%clk 0:02:41.1]} 9. Bg2 {[%clk 0:02:40.9]} 9... Bd6 {[%clk
0:02:36.4]} 10. O-O {[%clk 0:02:40.1]} 10... O-O {[%clk 0:02:36.3]} 11. c4
{[%clk 0:02:38.2]} 11... dxc3 {[%clk 0:02:34.5]} 12. bxc3 {[%clk 0:02:34.9]}
12... Be6 {[%clk 0:02:34.3]} 13. Ng5 {[%clk 0:02:33.5]} 13... Bd7 {[%clk
0:02:04.8]} 14. Qb3+ {[%clk 0:02:32.3]} 14... Kh8 {[%clk 0:02:01.8]} 15. Nf7+
{[%clk 0:02:29.5]} 15... Rxf7 {[%clk 0:01:56.6]} 16. Qxf7 {[%clk 0:02:28.7]}
16... Be8 {[%clk 0:01:52.3]} 17. Qb3 {[%clk 0:02:26.4]} 17... b6 {[%clk
0:01:38.1]} 18. Bb2 {[%clk 0:02:02.2]} 18... Rc8 {[%clk 0:01:36.6]} 19. Rae1
{[%clk 0:02:00.6]} 19... Ng4 {[%clk 0:01:34.3]} 20. Nc1 {[%clk 0:01:53.2]} 20...
c4 {[%clk 0:01:03.5]} 21. Qd1 {[%clk 0:01:37]} 21... cxd3 {[%clk 0:00:57.1]} 22.
Nxd3 {[%clk 0:01:36.5]} 22... Na5 {[%clk 0:00:56.2]} 23. h3 {[%clk 0:01:18.4]}
23... Nf6 {[%clk 0:00:55.3]} 24. Ne5 {[%clk 0:01:13]} 24... Bc5+ {[%clk
0:00:34.6]} 25. Kh2 {[%clk 0:01:12.1]} 25... Qc7 {[%clk 0:00:34.5]} 26. c4
{[%clk 0:01:04.9]} 26... Bb4 {[%clk 0:00:30.5]} 27. Re2 {[%clk 0:00:57.8]} 27...
h6 {[%clk 0:00:27.6]} 28. Rc2 {[%clk 0:00:55.9]} 28... Ba4 {[%clk 0:00:25.4]}
29. Qe2 {[%clk 0:00:46.3]} 29... Bxc2 {[%clk 0:00:24.7]} 30. Qxc2 {[%clk
0:00:46.4]} 30... Nxc4 {[%clk 0:00:24.1]} 31. Nxc4 {[%clk 0:00:41.6]} 31... Qxc4
{[%clk 0:00:23.1]} 32. Qxf5 {[%clk 0:00:41.2]} 32... Qc2 {[%clk 0:00:15]} 33.
Bxf6 {[%clk 0:00:37.2]} 33... Qxf5 {[%clk 0:00:13.9]} 34. Be5 {[%clk 0:00:33.1]}
34... Rc2 {[%clk 0:00:13.7]} 35. Kh1 {[%clk 0:00:27.9]} 35... Qd3 {[%clk
0:00:13.4]} 36. f5 {[%clk 0:00:12.4]} 36... Bc3 {[%clk 0:00:10.2]} 37. Bxc3
{[%clk 0:00:11.3]} 37... Qxc3 {[%clk 0:00:09.7]} 38. f6 {[%clk 0:00:10.8]} 38...
gxf6 {[%clk 0:00:08.8]} 39. Rd1 {[%clk 0:00:09.8]} 39... Qxg3 {[%clk 0:00:08.5]}
40. Rd8+ {[%clk 0:00:08.3]} 40... Kg7 {[%clk 0:00:08.8]} 41. Rd7+ {[%clk
0:00:07.9]} 41... Kf8 {[%clk 0:00:07.9]} 42. Rd8+ {[%clk 0:00:07.8]} 42... Ke7
{[%clk 0:00:08.1]} 43. Re8+ {[%clk 0:00:05.2]} 43... Kxe8 {[%clk 0:00:07.5]} 44.
Bc6+ {[%clk 0:00:05.3]} 44... Ke7 {[%clk 0:00:07.6]} 45. Bf3 {[%clk 0:00:02.5]}
45... Qh2# {[%clk 0:00:07.4]} 0-1

[Event "*** Titled Tuesday Blitz"]
[Site "Chess.com"]
[Date "2021.02.02"]
[Round "10"]
[White "MasterSonnevanck23"]
[Black "BL4D3RUNN3R"]
[Result "1-0"]
[WhiteElo "2379"]
[BlackElo "2218"]
[TimeControl "180+1"]
[EndTime "11:56:54 PST"]
[Termination "MasterSonnevanck23 won on time"]

1. d4 {[%clk 0:03:00.9]} 1... Nf6 {[%clk 0:02:59.4]} 2. c4 {[%clk 0:03:00.5]}
2... g6 {[%clk 0:02:59.2]} 3. Nc3 {[%clk 0:03:00.3]} 3... Bg7 {[%clk 0:02:59.3]}
4. e4 {[%clk 0:03:00.5]} 4... d6 {[%clk 0:02:59.4]} 5. Nf3 {[%clk 0:03:01]} 5...
O-O {[%clk 0:02:59]} 6. Be2 {[%clk 0:03:01.6]} 6... e5 {[%clk 0:02:58.3]} 7. Be3
{[%clk 0:03:01.3]} 7... Ng4 {[%clk 0:02:56.7]} 8. Bg5 {[%clk 0:03:00.4]} 8... f6
{[%clk 0:02:55.9]} 9. Bh4 {[%clk 0:03:00.4]} 9... Nh6 {[%clk 0:02:55]} 10. dxe5
{[%clk 0:02:44.4]} 10... dxe5 {[%clk 0:02:53.2]} 11. Qxd8 {[%clk 0:02:44.3]}
11... Rxd8 {[%clk 0:02:50.3]} 12. Nd5 {[%clk 0:02:44.5]} 12... g5 {[%clk
0:02:35.9]} 13. Nxc7 {[%clk 0:02:42.3]} 13... gxh4 {[%clk 0:02:30.3]} 14. Nxa8
{[%clk 0:02:40.9]} 14... Na6 {[%clk 0:02:29.7]} 15. Rd1 {[%clk 0:02:28.4]} 15...
Rxd1+ {[%clk 0:02:12.3]} 16. Kxd1 {[%clk 0:01:56.3]} 16... h3 {[%clk 0:02:00]}
17. gxh3 {[%clk 0:01:53]} 17... Bxh3 {[%clk 0:01:53.4]} 18. Kc1 {[%clk
0:01:43.1]} 18... Ng4 {[%clk 0:01:37.6]} 19. Rd1 {[%clk 0:01:42.7]} 19... Nxf2
{[%clk 0:01:30.3]} 20. Rd8+ {[%clk 0:01:41.9]} 20... Bf8 {[%clk 0:01:27.2]} 21.
Nd2 {[%clk 0:01:37.3]} 21... Kf7 {[%clk 0:01:21.7]} 22. c5 {[%clk 0:01:33.2]}
22... Bxc5 {[%clk 0:00:59.5]} 23. Bxa6 {[%clk 0:01:26.7]} 23... bxa6 {[%clk
0:00:58.6]} 24. Rh8 {[%clk 0:01:14.6]} 24... Kg7 {[%clk 0:00:52.3]} 25. Rb8
{[%clk 0:01:14.3]} 25... Be3 {[%clk 0:00:48.7]} 26. Nc7 {[%clk 0:01:08.8]} 26...
Nxe4 {[%clk 0:00:43.5]} 27. Kc2 {[%clk 0:01:08.4]} 27... Nxd2 {[%clk 0:00:41.3]}
28. Nd5 {[%clk 0:01:07.5]} 28... Bg5 {[%clk 0:00:35.1]} 29. Rb7+ {[%clk
0:01:06]} 29... Kg6 {[%clk 0:00:33.4]} 30. Rxa7 {[%clk 0:01:04.9]} 30... Bf5+
{[%clk 0:00:33.1]} 31. Kc3 {[%clk 0:01:03.6]} 31... Ne4+ {[%clk 0:00:31.6]} 32.
Kc4 {[%clk 0:01:00.3]} 32... Nd6+ {[%clk 0:00:30.7]} 33. Kc5 {[%clk 0:01:00.1]}
33... Ne4+ {[%clk 0:00:27.7]} 34. Kc6 {[%clk 0:00:59]} 34... Nd2 {[%clk
0:00:20.9]} 35. Ne7+ {[%clk 0:00:58.6]} 35... Kh5 {[%clk 0:00:17.7]} 36. Nxf5
{[%clk 0:00:58.7]} 36... Kg4 {[%clk 0:00:16.1]} 37. Nd6 {[%clk 0:00:56.4]} 37...
Be3 {[%clk 0:00:12.2]} 38. Rxa6 {[%clk 0:00:55.4]} 38... Nf3 {[%clk 0:00:11.5]}
39. Ra4+ {[%clk 0:00:53.6]} 39... Nd4+ {[%clk 0:00:10.7]} 40. Kd5 {[%clk
0:00:50.4]} 40... Bg1 {[%clk 0:00:07.8]} 41. Nb5 {[%clk 0:00:48.9]} 41... f5
{[%clk 0:00:06.8]} 42. Nxd4 {[%clk 0:00:48.1]} 42... exd4 {[%clk 0:00:06.2]} 43.
Kc4 {[%clk 0:00:44.4]} 43... f4 {[%clk 0:00:06]} 44. Kd3 {[%clk 0:00:44.2]}
44... f3 {[%clk 0:00:05.8]} 45. Ra8 {[%clk 0:00:42.9]} 45... Kh3 {[%clk
0:00:05.6]} 46. Rg8 {[%clk 0:00:40.7]} 46... Kxh2 {[%clk 0:00:04.8]} 47. a4
{[%clk 0:00:37.6]} 47... h5 {[%clk 0:00:03.5]} 48. a5 {[%clk 0:00:37.3]} 48...
f2 {[%clk 0:00:03.4]} 49. Ke2 {[%clk 0:00:36.3]} 49... d3+ {[%clk 0:00:03.6]}
50. Kf1 {[%clk 0:00:36.4]} 50... d2 {[%clk 0:00:03.1]} 51. Rd8 {[%clk
0:00:36.5]} 51... Kg3 {[%clk 0:00:02.6]} 52. Rxd2 {[%clk 0:00:36.4]} 52... h4
{[%clk 0:00:02.1]} 53. a6 {[%clk 0:00:36.5]} 53... h3 {[%clk 0:00:02]} 54. a7
{[%clk 0:00:36.7]} 54... h2 {[%clk 0:00:01.9]} 55. a8=Q {[%clk 0:00:36.5]} 55...
h1=Q {[%clk 0:00:01.6]} 56. Qxh1 {[%clk 0:00:36.2]} 1-0

[Event "*** Titled Tuesday Blitz"]
[Site "Chess.com"]
[Date "2021.02.02"]
[Round "10"]
[White "HouseOfDurin"]
[Black "jorquerino"]
[Result "0-1"]
[WhiteElo "2099"]
[BlackElo "2265"]
[TimeControl "180+1"]
[EndTime "11:56:56 PST"]
[Termination "jorquerino won by checkmate"]

1. d4 {[%clk 0:03:00.9]} 1... Nf6 {[%clk 0:02:58.7]} 2. Bg5 {[%clk 0:03:01.3]}
2... g6 {[%clk 0:02:56.2]} 3. Bxf6 {[%clk 0:03:01.5]} 3... exf6 {[%clk
0:02:57.1]} 4. c4 {[%clk 0:03:01.8]} 4... Bg7 {[%clk 0:02:57.6]} 5. Nc3 {[%clk
0:03:02.5]} 5... O-O {[%clk 0:02:58.1]} 6. g3 {[%clk 0:03:02.9]} 6... f5 {[%clk
0:02:57.4]} 7. e3 {[%clk 0:03:03.1]} 7... d6 {[%clk 0:02:57.8]} 8. Bg2 {[%clk
0:03:01.3]} 8... Nd7 {[%clk 0:02:58.2]} 9. Nge2 {[%clk 0:03:01.1]} 9... Nf6
{[%clk 0:02:58.8]} 10. O-O {[%clk 0:03:00.6]} 10... Re8 {[%clk 0:02:57.8]} 11.
Qd3 {[%clk 0:03:00.5]} 11... Rb8 {[%clk 0:02:55.4]} 12. b4 {[%clk 0:02:59.9]}
12... h5 {[%clk 0:02:53.8]} 13. h4 {[%clk 0:02:59.2]} 13... Ng4 {[%clk
0:02:48.5]} 14. b5 {[%clk 0:02:53.1]} 14... g5 {[%clk 0:02:45.5]} 15. hxg5
{[%clk 0:02:35.2]} 15... Qxg5 {[%clk 0:02:46.4]} 16. Nd5 {[%clk 0:02:24.9]}
16... Qd8 {[%clk 0:02:15]} 17. Rab1 {[%clk 0:02:08.1]} 17... h4 {[%clk
0:02:08.3]} 18. Rfe1 {[%clk 0:01:37]} 18... hxg3 {[%clk 0:02:04.3]} 19. Nxg3
{[%clk 0:01:37]} 19... Nh6 {[%clk 0:00:21.7]} 20. Bf3 {[%clk 0:01:19.3]} 20...
Be6 {[%clk 0:00:18.8]} 21. Kg2 {[%clk 0:01:09.3]} 21... c6 {[%clk 0:00:18.4]}
22. bxc6 {[%clk 0:01:08.1]} 22... bxc6 {[%clk 0:00:19.3]} 23. Nb4 {[%clk
0:00:57.5]} 23... Rxb4 {[%clk 0:00:12.5]} 24. Rxb4 {[%clk 0:00:56.9]} 24... Qg5
{[%clk 0:00:06.8]} 25. Rh1 {[%clk 0:00:47.1]} 25... f4 {[%clk 0:00:06.1]} 26.
Rh5 {[%clk 0:00:32.7]} 26... Qe7 {[%clk 0:00:04.8]} 27. exf4 {[%clk 0:00:28.6]}
27... d5 {[%clk 0:00:05.1]} 28. c5 {[%clk 0:00:24.2]} 28... Bg4 {[%clk
0:00:04.9]} 29. Rb1 {[%clk 0:00:05.8]} 29... Bxh5 {[%clk 0:00:03.1]} 30. Nxh5
{[%clk 0:00:04.5]} 30... Qe6 {[%clk 0:00:01.9]} 31. Nxg7 {[%clk 0:00:04.4]}
31... Kxg7 {[%clk 0:00:01.3]} 32. Rg1 {[%clk 0:00:05.3]} 32... Kf6 {[%clk
0:00:01.1]} 33. Kf1 {[%clk 0:00:05.7]} 33... Qf5 {[%clk 0:00:01]} 34. Qxf5+
{[%clk 0:00:05.1]} 34... Nxf5 {[%clk 0:00:01.9]} 35. Rg5 {[%clk 0:00:05.3]}
35... Nxd4 {[%clk 0:00:02.8]} 36. Bxd5 {[%clk 0:00:05.4]} 36... cxd5 {[%clk
0:00:02.1]} 37. Rxd5 {[%clk 0:00:06.3]} 37... Nc2 {[%clk 0:00:02.4]} 38. Rd6+
{[%clk 0:00:06.7]} 38... Kf5 {[%clk 0:00:02.5]} 39. Ra6 {[%clk 0:00:07]} 39...
Kxf4 {[%clk 0:00:03.4]} 40. Rxa7 {[%clk 0:00:06.9]} 40... Nd4 {[%clk 0:00:04.3]}
41. Rxf7+ {[%clk 0:00:07.4]} 41... Ke4 {[%clk 0:00:04.3]} 42. Ra7 {[%clk
0:00:07.5]} 42... Kd3 {[%clk 0:00:04.4]} 43. Ra5 {[%clk 0:00:08]} 43... Nc2
{[%clk 0:00:03.6]} 44. Kg2 {[%clk 0:00:08.9]} 44... Nd4 {[%clk 0:00:02.9]} 45.
Ra6 {[%clk 0:00:08.8]} 45... Rg8+ {[%clk 0:00:03.1]} 46. Kh3 {[%clk 0:00:08.5]}
46... Nf3 {[%clk 0:00:02.6]} 47. c6 {[%clk 0:00:07.9]} 47... Ke2 {[%clk
0:00:02.5]} 48. c7 {[%clk 0:00:07.2]} 48... Kxf2 {[%clk 0:00:02.7]} 49. Rc6
{[%clk 0:00:06.2]} 49... Rg3# {[%clk 0:00:02.7]} 0-1

[Event "*** Titled Tuesday Blitz"]
[Site "Chess.com"]
[Date "2021.02.02"]
[Round "10"]
[White "floplover"]
[Black "Blitzking642"]
[Result "1-0"]
[WhiteElo "2339"]
[BlackElo "2444"]
[TimeControl "180+1"]
[EndTime "11:56:58 PST"]
[Termination "floplover won by resignation"]

1. d4 {[%clk 0:02:47.6]} 1... Nf6 {[%clk 0:02:59.5]} 2. c4 {[%clk 0:02:47.5]}
2... c5 {[%clk 0:02:59.9]} 3. d5 {[%clk 0:02:47.3]} 3... b5 {[%clk 0:03:00.4]}
4. cxb5 {[%clk 0:02:48.2]} 4... a6 {[%clk 0:03:00.7]} 5. bxa6 {[%clk 0:02:49.1]}
5... g6 {[%clk 0:02:59.3]} 6. Nc3 {[%clk 0:02:49.4]} 6... Bxa6 {[%clk
0:02:58.9]} 7. e4 {[%clk 0:02:49]} 7... Bxf1 {[%clk 0:02:59.4]} 8. Kxf1 {[%clk
0:02:49.9]} 8... d6 {[%clk 0:02:59.9]} 9. g3 {[%clk 0:02:50.6]} 9... Bg7 {[%clk
0:03:00.5]} 10. Kg2 {[%clk 0:02:51.5]} 10... O-O {[%clk 0:03:00.8]} 11. Nf3
{[%clk 0:02:52.2]} 11... Qb6 {[%clk 0:03:01.4]} 12. Re1 {[%clk 0:02:37.8]} 12...
Na6 {[%clk 0:03:00.5]} 13. a4 {[%clk 0:02:32.7]} 13... Nc7 {[%clk 0:02:57.8]}
14. Ra3 {[%clk 0:02:26.4]} 14... Rfb8 {[%clk 0:02:57.7]} 15. b3 {[%clk
0:02:06.3]} 15... Qa6 {[%clk 0:02:49.9]} 16. Nd2 {[%clk 0:01:52]} 16... Nd7
{[%clk 0:02:32.4]} 17. Qc2 {[%clk 0:01:49.8]} 17... Ne5 {[%clk 0:02:29.3]} 18.
f4 {[%clk 0:01:38.3]} 18... Nd3 {[%clk 0:02:28.1]} 19. Re3 {[%clk 0:01:37.8]}
19... Nxc1 {[%clk 0:02:02.5]} 20. Qxc1 {[%clk 0:01:38.7]} 20... Rb4 {[%clk
0:01:51.5]} 21. Nc4 {[%clk 0:01:35.4]} 21... Rab8 {[%clk 0:01:50.1]} 22. Qc2
{[%clk 0:01:33]} 22... e6 {[%clk 0:01:45.5]} 23. dxe6 {[%clk 0:01:27]} 23...
Nxe6 {[%clk 0:01:45.2]} 24. Nd5 {[%clk 0:01:24.1]} 24... Nd4 {[%clk 0:01:43.1]}
25. Qd1 {[%clk 0:00:52.6]} 25... R4b7 {[%clk 0:01:32.8]} 26. h4 {[%clk
0:00:41.2]} 26... Nxb3 {[%clk 0:01:30.6]} 27. Nxd6 {[%clk 0:00:36.1]} 27... Qxd6
{[%clk 0:01:30]} 28. Raxb3 {[%clk 0:00:36.6]} 28... Bd4 {[%clk 0:01:17]} 29.
Rxb7 {[%clk 0:00:34.2]} 29... Rxb7 {[%clk 0:01:16.7]} 30. Rb3 {[%clk 0:00:34.1]}
30... Qb8 {[%clk 0:00:55.1]} 31. Rxb7 {[%clk 0:00:32.8]} 31... Qxb7 {[%clk
0:00:56]} 32. Qc2 {[%clk 0:00:32.3]} 32... Qa6 {[%clk 0:00:48.4]} 33. e5 {[%clk
0:00:25.3]} 33... Qc6 {[%clk 0:00:45.6]} 34. Qe4 {[%clk 0:00:24.1]} 34... Qxa4
{[%clk 0:00:41.5]} 35. Nf6+ {[%clk 0:00:23.3]} 35... Kg7 {[%clk 0:00:40.1]} 36.
h5 {[%clk 0:00:19.7]} 36... Qa2+ {[%clk 0:00:39.6]} 37. Kh3 {[%clk 0:00:18]}
37... Qe6+ {[%clk 0:00:28.2]} 38. Kg2 {[%clk 0:00:17.7]} 38... Qa2+ {[%clk
0:00:23.3]} 39. Kh3 {[%clk 0:00:18.2]} 39... Qe6+ {[%clk 0:00:19.6]} 40. Kh4
{[%clk 0:00:18.6]} 40... Qc8 {[%clk 0:00:07.7]} 41. Qd5 {[%clk 0:00:17.2]} 41...
Qe6 {[%clk 0:00:07]} 42. Qd8 {[%clk 0:00:16.5]} 42... g5+ {[%clk 0:00:02.7]} 43.
Kxg5 {[%clk 0:00:15.5]} 43... h6+ {[%clk 0:00:01.3]} 44. Kh4 {[%clk 0:00:15.8]}
44... Qxf6+ {[%clk 0:00:01.7]} 45. exf6+ {[%clk 0:00:13.1]} 45... Bxf6+ {[%clk
0:00:02.6]} 46. Qxf6+ {[%clk 0:00:13.4]} 46... Kxf6 {[%clk 0:00:03.2]} 47. Kg4
{[%clk 0:00:14.3]} 47... c4 {[%clk 0:00:03.1]} 48. Kf3 {[%clk 0:00:14.7]} 48...
Kf5 {[%clk 0:00:03.7]} 49. g4+ {[%clk 0:00:14.6]} 49... Kf6 {[%clk 0:00:04.2]}
50. Ke3 {[%clk 0:00:15.1]} 50... Ke6 {[%clk 0:00:04.6]} 51. Kd4 {[%clk
0:00:15.3]} 51... f5 {[%clk 0:00:05]} 52. g5 {[%clk 0:00:14.8]} 52... hxg5
{[%clk 0:00:05.1]} 53. fxg5 {[%clk 0:00:15.7]} 53... f4 {[%clk 0:00:05.6]} 54.
Kxc4 {[%clk 0:00:16.3]} 54... f3 {[%clk 0:00:05.9]} 55. Kd3 {[%clk 0:00:16.8]}
55... f2 {[%clk 0:00:06.8]} 56. Ke2 {[%clk 0:00:17.1]} 56... Kf5 {[%clk
0:00:07.7]} 57. h6 {[%clk 0:00:16.8]} 57... Kxg5 {[%clk 0:00:08.6]} 58. h7
{[%clk 0:00:16.3]} 58... Kg6 {[%clk 0:00:09.5]} 59. h8=Q {[%clk 0:00:16]} 59...
Kg5 {[%clk 0:00:10.4]} 1-0

[Event "*** Titled Tuesday Blitz"]
[Site "Chess.com"]
[Date "2021.02.02"]
[Round "10"]
[White "JiiHart"]
[Black "MaxLeto"]
[Result "0-1"]
[WhiteElo "2103"]
[BlackElo "2297"]
[TimeControl "180+1"]
[EndTime "11:56:58 PST"]
[Termination "MaxLeto won on time"]

1. e4 {[%clk 0:03:00.9]} 1... c5 {[%clk 0:02:58.8]} 2. Nf3 {[%clk 0:03:00.3]}
2... d6 {[%clk 0:02:59.3]} 3. d4 {[%clk 0:03:00.4]} 3... cxd4 {[%clk 0:03:00.2]}
4. Nxd4 {[%clk 0:03:00.9]} 4... Nf6 {[%clk 0:03:00.8]} 5. Nc3 {[%clk 0:03:01.3]}
5... a6 {[%clk 0:03:01.4]} 6. Bg5 {[%clk 0:03:01.2]} 6... Nbd7 {[%clk
0:03:01.1]} 7. f4 {[%clk 0:03:00.8]} 7... Qc7 {[%clk 0:03:01.5]} 8. Qf3 {[%clk
0:02:59.4]} 8... h6 {[%clk 0:03:01.8]} 9. Bh4 {[%clk 0:02:59]} 9... g5 {[%clk
0:03:02.3]} 10. fxg5 {[%clk 0:02:58.7]} 10... hxg5 {[%clk 0:03:03.2]} 11. Bxg5
{[%clk 0:02:54.3]} 11... Qc5 {[%clk 0:03:03.4]} 12. Be3 {[%clk 0:02:46.9]} 12...
Ne5 {[%clk 0:03:03]} 13. Qe2 {[%clk 0:02:40.3]} 13... Neg4 {[%clk 0:03:03.5]}
14. Nf5 {[%clk 0:02:01.1]} 14... Nxe3 {[%clk 0:03:02.1]} 15. Qxe3 {[%clk
0:01:57.5]} 15... e6 {[%clk 0:02:14.8]} 16. Qxc5 {[%clk 0:01:52]} 16... dxc5
{[%clk 0:02:15.7]} 17. Ne3 {[%clk 0:01:34.5]} 17... b5 {[%clk 0:01:54.5]} 18. e5
{[%clk 0:01:10.7]} 18... Nd7 {[%clk 0:01:47.3]} 19. Ng4 {[%clk 0:01:04.4]} 19...
Bg7 {[%clk 0:01:09]} 20. Ne4 {[%clk 0:01:00.8]} 20... Nxe5 {[%clk 0:01:04.1]}
21. Nxe5 {[%clk 0:00:46.4]} 21... Bxe5 {[%clk 0:01:05]} 22. O-O-O {[%clk
0:00:45.9]} 22... c4 {[%clk 0:00:59.4]} 23. Nd6+ {[%clk 0:00:33.6]} 23... Ke7
{[%clk 0:00:57.1]} 24. Nxc8+ {[%clk 0:00:30]} 24... Raxc8 {[%clk 0:00:58]} 25.
h4 {[%clk 0:00:24.6]} 25... Rcg8 {[%clk 0:00:49.2]} 26. h5 {[%clk 0:00:23]}
26... Rg5 {[%clk 0:00:45.6]} 27. h6 {[%clk 0:00:19.5]} 27... Rg6 {[%clk
0:00:41.5]} 28. h7 {[%clk 0:00:15.8]} 28... Rg7 {[%clk 0:00:40.6]} 29. Be2
{[%clk 0:00:11.5]} 29... Rhxh7 {[%clk 0:00:36.8]} 30. Rxh7 {[%clk 0:00:12.1]}
30... Rxh7 {[%clk 0:00:37.7]} 31. Bf3 {[%clk 0:00:12.5]} 31... Rg7 {[%clk
0:00:35.6]} 32. Bb7 {[%clk 0:00:12]} 32... a5 {[%clk 0:00:33.8]} 33. Bc6 {[%clk
0:00:12.2]} 33... b4 {[%clk 0:00:33.9]} 34. Rd7+ {[%clk 0:00:11]} 34... Kf6
{[%clk 0:00:33.3]} 35. a3 {[%clk 0:00:11.2]} 35... Rh7 {[%clk 0:00:20.6]} 36.
Kd1 {[%clk 0:00:08.3]} 36... Bxb2 {[%clk 0:00:19.3]} 37. axb4 {[%clk 0:00:08.5]}
37... axb4 {[%clk 0:00:20.2]} 38. Rb7 {[%clk 0:00:08]} 38... Bc3 {[%clk
0:00:17]} 39. Ke2 {[%clk 0:00:07.4]} 39... Ke5 {[%clk 0:00:15.1]} 40. Be8 {[%clk
0:00:07.2]} 40... Rh2 {[%clk 0:00:11.8]} 41. Kf3 {[%clk 0:00:07]} 41... f5
{[%clk 0:00:11.1]} 42. Rb5+ {[%clk 0:00:06.9]} 42... Kd4 {[%clk 0:00:10.4]} 43.
Rb8 {[%clk 0:00:06.4]} 43... Rh1 {[%clk 0:00:09.9]} 44. Rd8+ {[%clk 0:00:06]}
44... Ke5 {[%clk 0:00:10.4]} 45. Bb5 {[%clk 0:00:05.6]} 45... Rf1+ {[%clk
0:00:08.3]} 46. Ke2 {[%clk 0:00:04.8]} 46... Re1+ {[%clk 0:00:08.8]} 47. Kf2
{[%clk 0:00:03.4]} 47... Re4 {[%clk 0:00:09.7]} 48. Rc8 {[%clk 0:00:02.4]} 48...
Bd4+ {[%clk 0:00:09.4]} 0-1